bitfinex/quotes_ETHUSD_20260130
["timestamp","ask_amount","ask_price","bid_price","bid_amount"]
[1769797299646,0.02999568,2650.9,2650.0,0.01499784]
[1769797299848,12.67872866,2651.1,2650.3,0.01499784]
[1769797300174,12.67872866,2651.1,2649.5,3.77415458]
[1769797300175,12.67872866,2650.9,2649.4,0.0188731]
[1769797300341,12.67872866,2650.2,2648.6,0.94387999]
[1769797300539,12.67872866,2650.8,2649.1,0.01499784]
[1769797300751,12.67872866,2650.6,2648.6,0.94387999]
[1769797300950,12.67872866,2649.8,2648.5,0.67940771]
[1769797301238,0.01499784,2648.7,2648.5,0.67940771]
[1769797301432,0.01499784,2648.9,2648.4,0.0016]
[1769797301667,0.01499784,2648.7,2648.4,0.0016]
[1769797301875,0.01499784,2648.7,2646.7,3.77819651]
[1769797301876,0.01499784,2648.2,2645.9,3.79429187]
[1769797302059,0.01499784,2649.2,2647.9,0.94413811]
[1769797302060,12.67872866,2649.2,2647.9,0.94413811]
[1769797302235,12.67872866,2649.9,2647.9,0.94413811]
[1769797302441,12.67872866,2649.7,2647.0,0.01499784]
[1769797302637,12.67872866,2649.7,2647.8,0.94417771]
[1769797302861,12.67872866,2649.7,2647.9,0.48708764]
[1769797303074,3.77372731,2650.0,2647.9,0.48708764]
[1769797303075,12.67872866,2650.6,2648.5,0.01499784]
[1769797303370,12.67872866,2650.6,2648.6,0.01499784]
[1769797303582,12.67872866,2650.4,2648.2,0.01499784]
[1769797303764,0.94315791,2650.7,2647.9,0.4720898]
[1769797303765,12.67872866,2650.2,2647.9,0.4720898]
[1769797304072,13.62188657,2650.7,2648.6,0.01499784]
[1769797304565,13.62188657,2650.7,2648.6,0.95888789]
[1769797304769,1.26787287,2651.0,2649.2,0.01499784]
[1769797304974,12.67872866,2651.5,2649.2,0.01499784]
[1769797304975,13.62161402,2651.5,2650.0,0.01499784]
[1769797305161,12.67872866,2652.3,2650.1,0.01499784]
[1769797305473,0.94236495,2652.9,2650.9,0.01499784]
[1769797305785,13.62107846,2653.0,2650.8,0.01499784]
[1769797306069,13.62107846,2653.0,2651.0,0.01499784]
[1769797306274,0.01499784,2652.7,2650.4,0.01499784]
[1769797306439,1.27087243,2652.7,2650.6,0.01499784]
[1769797306637,12.6937265,2653.3,2650.8,0.01499784]
[1769797306944,12.67872866,2653.2,2651.1,0.01499784]
[1769797307143,12.6937265,2653.1,2650.9,0.01499784]
[1769797307684,12.67872866,2653.1,2650.9,0.01499784]
[1769797307846,12.67872866,2653.1,2650.5,0.9582161]
[1769797307847,0.01499784,2652.6,2650.5,0.94321826]
[1769797308041,12.6937265,2652.8,2650.6,0.47160913]
[1769797308355,12.6937265,2652.8,2650.6,0.48660697]
[1769797308356,12.67872866,2652.8,2650.6,0.48660697]
[1769797308542,13.62116466,2652.7,2650.7,0.94314709]
[1769797308739,12.67872866,2652.6,2650.6,0.94317892]
[1769797308977,14.04234491,2652.5,2650.7,0.47159096]
[1769797310078,1.36361625,2652.5,2650.9,0.01499784]
[1769797310380,1.36361625,2652.5,2650.7,0.4865888]
[1769797310381,12.67872866,2652.6,2650.8,0.002]
[1769797310544,12.67872866,2652.6,2650.8,0.94511151]
[1769797310751,0.94233503,2653.0,2651.1,0.01499784]
[1769797310948,13.15282192,2653.3,2651.5,0.01499784]
[1769797311184,1.31528219,2653.2,2651.5,0.01499784]
[1769797311386,1.41632558,2653.3,2650.8,0.94511151]
[1769797311691,12.67872866,2652.9,2650.8,0.96010935]
[1769797311844,12.67872866,2652.9,2651.2,0.01499784]
[1769797312048,12.67872866,2652.9,2651.0,0.01499784]
[1769797312252,12.67872866,2652.9,2650.8,0.94511151]
[1769797312499,13.62116466,2652.7,2651.0,0.94304036]
[1769797312660,12.67872866,2652.7,2651.0,0.94304036]
[1769797312853,14.09506714,2653.3,2651.4,0.01499784]
[1769797313047,13.15282192,2653.3,2651.6,0.01499784]
[1769797313332,0.94219054,2653.4,2651.2,0.01499784]
[1769797313453,0.94219054,2653.4,2651.5,0.01499784]
[1769797313652,0.94219054,2653.4,2652.6,0.0413196]
[1769797314057,0.94219054,2653.4,2650.9,1.46198777]
[1769797314058,12.67872866,2652.6,2650.9,1.46198777]
[1769797314352,0.94219054,2653.4,2651.1,0.01499784]
[1769797314353,12.67872866,2653.3,2651.1,0.01499784]
[1769797314560,0.94229392,2653.1,2651.4,0.94289809]
[1769797314766,0.94229392,2653.1,2651.5,0.01499784]
[1769797314960,0.94229392,2653.1,2651.4,0.94289809]
[1769797315365,12.6937265,2653.0,2651.2,0.94294475]
[1769797315585,14.0423307,2652.9,2651.3,0.94292741]
[1769797315880,14.0423307,2652.9,2651.0,0.01499784]
[1769797316188,14.0423307,2652.9,2651.3,0.94290338]
[1769797316362,12.6937265,2652.6,2650.9,0.94305458]
[1769797316568,0.94257813,2652.3,2650.8,0.002]
[1769797316873,1.26937265,2652.5,2650.8,0.002]
[1769797316874,2.21188678,2652.5,2650.8,0.002]
[1769797317186,0.94232943,2653.0,2650.8,0.002]
[1769797317389,0.94232943,2653.0,2650.9,0.01499784]
[1769797317697,0.01499784,2652.6,2650.8,0.002]
[1769797317853,12.67872866,2652.3,2650.8,0.002]
[1769797318174,12.67872866,2651.9,2650.8,0.002]
[1769797318379,1.26787287,2651.8,2650.8,0.002]
[1769797318562,0.94264922,2652.1,2650.8,0.002]
[1769797318884,0.9425426,2652.4,2650.8,0.002]
[1769797319088,13.6362691,2652.4,2650.8,0.002]
[1769797319265,0.01499784,2652.2,2650.8,0.002]
[1769797319678,13.6362691,2652.4,2650.8,0.002]
[1769797319886,0.01499784,2652.2,2650.8,0.002]
[1769797320059,14.41937261,2652.3,2650.8,0.002]
[1769797320393,0.94240048,2652.8,2650.8,0.792]
[1769797320594,0.94240048,2652.8,2650.9,0.94307593]
[1769797320796,13.62110952,2652.9,2650.9,0.94307593]
[1769797321294,13.62110952,2652.9,2650.9,0.95807377]
[1769797321496,2.68141288,2652.9,2651.1,0.01499784]
[1769797321696,0.94222289,2653.3,2651.1,0.01499784]
[1769797321897,13.62091397,2653.5,2651.6,0.01499784]
[1769797322059,0.94310642,2653.7,2651.8,0.01499784]
[1769797322258,0.001,2653.7,2652.0,0.01499784]
[1769797322468,12.67872866,2654.7,2652.5,0.01499784]
[1769797322690,0.94154865,2655.2,2653.9,0.0008]
[1769797323058,0.01499784,2655.1,2653.9,0.0008]
[1769797323361,13.62024624,2655.3,2653.9,0.0008]
[1769797323562,13.62025311,2655.3,2653.9,0.0008]
[1769797323779,12.6937265,2654.5,2651.9,11.71711932]
[1769797323991,0.0008,2653.7,2652.8,0.94239896]
[1769797324467,0.0008,2653.7,2652.8,0.94239155]
[1769797324660,0.0008,2653.7,2652.1,0.94264922]
[1769797324990,0.01499784,2653.1,2651.0,4.32431677]
[1769797325192,0.01499784,2652.5,2651.1,0.39467168]
[1769797325357,0.01499784,2652.5,2650.6,3.77266481]
[1769797325558,0.01499784,2652.8,2651.0,3.77210841]
[1769797325888,0.01499784,2653.2,2650.6,3.77266561]
[1769797326189,0.01499784,2653.2,2650.3,0.94326977]
[1769797326190,0.01499784,2651.8,2650.3,0.94326977]
[1769797326496,0.01499784,2652.1,2650.4,3.77300606]
[1769797326692,0.94275586,2651.8,2650.5,0.94321826]
[1769797326866,0.95770031,2652.0,2650.5,0.94321826]
[1769797327200,13.81158521,2651.8,2650.0,3.77357276]
[1769797327355,13.81158521,2651.8,2649.6,3.77409371]
[1769797327356,0.01499784,2651.7,2650.4,0.94325119]
[1769797327557,1.85250267,2651.9,2650.4,0.94325119]
[1769797327755,0.95770031,2652.0,2650.4,0.94325119]
[1769797328058,0.95770031,2652.0,2650.3,3.77313193]
[1769797328059,0.01499784,2651.6,2650.3,0.94328645]
[1769797328287,0.01499784,2651.6,2649.4,0.01499784]
[1769797328288,13.81158521,2651.6,2649.4,0.01499784]
[1769797328592,13.81158521,2651.6,2648.9,6.662134]
[1769797328593,0.01499784,2651.5,2650.3,0.9432826]
[1769797328766,0.01499784,2651.6,2650.3,0.47167075]
[1769797329082,0.01499784,2651.4,2649.3,0.94364549]
[1769797329292,0.94273627,2651.9,2649.6,0.01499784]
[1769797329492,13.81158521,2651.6,2649.3,0.94364549]
[1769797329656,0.01499784,2651.2,2649.3,0.94364549]
[1769797329859,13.79658737,2651.2,2649.3,0.94364549]
[1769797330083,1.37965874,2651.1,2649.4,0.47190274]
[1769797330273,0.01499784,2651.7,2649.4,0.47190274]
[1769797330456,13.81158521,2651.4,2649.4,0.47190274]
[1769797330657,0.94293365,2651.3,2649.5,0.94357425]
[1769797330859,0.94293365,2651.3,2649.2,0.0008]
[1769797330860,13.79658737,2650.6,2649.2,0.0008]
[1769797331107,13.81158521,2650.1,2648.4,0.94394136]
[1769797331263,13.81158521,2650.1,2648.4,0.94396256]
[1769797331458,13.81158521,2650.1,2648.4,0.94393068]
[1769797331659,13.79658737,2650.1,2649.2,0.9436715]
[1769797331962,13.79658737,2650.1,2647.6,0.01499784]
[1769797331963,13.79658737,2650.2,2648.1,0.94404865]
[1769797332155,0.01499784,2649.7,2648.0,0.94408354]
[1769797332396,0.01499784,2649.4,2647.7,3.77684519]
[1769797332698,0.94375235,2649.0,2647.6,3.77697901]
[1769797332995,0.94370402,2649.2,2647.6,3.77697901]
[1769797333358,3.78886756,2649.9,2647.6,3.77697901]
[1769797333564,13.81158521,2649.7,2647.7,0.47212304]
[1769797333765,13.79658737,2649.7,2647.7,0.47212304]
[1769797333966,0.94313473,2650.8,2648.2,0.01499784]
[1769797334202,14.73962773,2651.0,2648.6,0.01499784]
[1769797334396,0.01499784,2650.6,2648.3,0.791]
[1769797334696,13.81158521,2650.6,2648.3,0.791]
[1769797334878,0.94328943,2650.3,2648.4,0.94396616]
[1769797335077,0.01499784,2650.2,2648.4,0.94396616]
[1769797335294,0.48964213,2650.2,2648.5,0.55108308]
[1769797335490,0.01499784,2649.6,2648.4,0.94396616]
[1769797335694,0.01499784,2649.5,2648.4,0.94396616]
[1769797335993,0.01499784,2649.3,2648.1,0.94405111]
[1769797336157,0.01499784,2649.1,2648.5,0.002]
[1769797336357,0.01499784,2649.3,2648.5,0.002]
[1769797336561,3.87555775,2650.8,2648.5,0.002]
[1769797336562,0.01499784,2649.6,2648.5,0.002]
[1769797336792,13.79658737,2650.1,2648.5,0.002]
[1769797337000,0.01499784,2649.8,2648.5,0.002]
[1769797337171,0.95810935,2650.8,2648.5,0.002]
[1769797337378,0.01499784,2650.2,2648.5,0.002]
[1769797337569,13.81158521,2650.6,2648.5,0.002]
[1769797337879,13.79658737,2650.6,2648.8,0.01499784]
[1769797338060,13.79658737,2651.3,2649.4,0.01499784]
[1769797338260,13.79658737,2651.3,2649.6,0.01499784]
[1769797338480,0.001,2651.7,2649.8,0.01499784]
[1769797338808,0.001,2651.7,2649.6,0.01499784]
[1769797338809,0.001,2651.7,2649.7,0.94350303]
[1769797339010,0.001,2651.7,2649.6,3.78900999]
[1769797339011,13.81158521,2651.4,2649.6,0.94351251]
[1769797339176,15.17774589,2651.3,2649.6,0.94351251]
[1769797339785,13.79658737,2650.7,2648.3,0.01499784]
[1769797340086,0.01499784,2650.2,2648.5,3.77764541]
[1769797340287,0.01499784,2650.4,2649.0,3.77496693]
[1769797340486,0.01499784,2651.2,2649.6,0.94352918]
[1769797340899,13.79658737,2651.4,2649.6,0.94352918]
[1769797341087,0.001,2651.7,2649.6,0.94352918]
[1769797341286,0.001,2651.7,2649.8,0.01499784]
[1769797341908,0.001,2651.7,2649.7,0.1024]
[1769797342130,0.001,2651.7,2649.7,0.66501051]
[1769797342288,0.01499784,2651.6,2649.7,1.35361051]
[1769797342928,13.81158521,2651.2,2649.0,0.37749669]
[1769797343221,0.01499784,2651.4,2649.0,0.94372873]
[1769797343222,13.81158521,2650.9,2649.0,0.94372873]
[1769797343450,13.79658737,2650.6,2648.5,0.002]
[1769797343633,0.01499784,2649.9,2648.5,0.94592905]
[1769797343939,0.01499784,2649.9,2648.5,0.94592669]
[1769797344144,0.01499784,2649.9,2648.5,1.41811787]
[1769797344345,13.79658737,2650.1,2648.8,0.9438205]
[1769797344549,13.79658737,2649.6,2648.5,0.002]
[1769797344719,13.79658737,2649.6,2648.5,0.94590843]
[1769797344925,0.94357425,2649.5,2648.5,0.47417725]
[1769797345128,14.74016162,2649.5,2648.5,0.002]
[1769797345443,0.01499784,2649.4,2648.5,0.002]
[1769797345647,14.74016162,2649.5,2648.5,0.002]
[1769797345816,13.79658737,2649.5,2648.5,0.002]
[1769797346014,1.47401284,2649.4,2648.5,0.002]
[1769797346540,13.79658737,2649.3,2647.8,0.94416636]
[1769797346747,1.47401284,2649.4,2646.6,3.77839787]
[1769797346748,13.81158521,2649.1,2646.6,3.77839787]
[1769797346914,0.01499784,2648.2,2646.3,0.94470029]
[1769797347111,0.01499784,2648.0,2646.4,0.94467709]
[1769797347318,0.94393052,2648.5,2646.5,0.47233953]
[1769797347846,0.94375235,2649.0,2647.1,0.01499784]
[1769797348011,0.94375235,2649.0,2647.3,0.01499784]
[1769797348214,14.74033972,2649.0,2647.0,0.791]
[1769797348414,14.74033972,2649.0,2646.2,6.662134]
[1769797348415,13.81158521,2648.4,2646.2,6.662134]
[1769797348622,1.38115852,2648.3,2646.5,0.47383932]
[1769797348849,0.94410876,2648.0,2645.9,0.01499784]
[1769797349054,14.75569397,2648.0,2645.7,1.0]
[1769797349215,14.75569397,2648.0,2646.2,0.01499784]
[1769797349216,13.79658737,2647.2,2646.2,0.01499784]
[1769797349413,13.79658737,2647.9,2646.6,0.01499784]
[1769797349665,1.47406961,2647.8,2646.8,0.01499784]
[1769797349956,1.47406961,2647.8,2646.2,0.01499784]
[1769797349957,15.27065698,2647.8,2646.2,0.01499784]
[1769797350133,15.27065698,2647.8,2645.8,0.01499784]
[1769797350134,15.27065698,2647.8,2646.3,0.01499784]
[1769797350452,15.27065698,2647.8,2645.7,1.0]
[1769797350453,13.79658737,2647.8,2645.7,1.0]
[1769797350961,13.79658737,2647.8,2645.7,1.94489458]
[1769797350962,13.79658737,2647.6,2645.7,1.94489458]
[1769797351170,0.94403745,2648.2,2646.2,0.01499784]
[1769797351338,14.75562266,2648.2,2645.8,0.01499784]
[1769797351662,15.78788047,2648.1,2645.8,0.21248972]
[1769797351864,13.79658737,2647.8,2645.8,0.19749188]
[1769797352050,1.9912931,2648.1,2646.0,0.01499784]
[1769797352253,13.79658737,2648.0,2645.8,0.21248972]
[1769797352450,0.01499784,2647.8,2645.8,0.19749188]
[1769797352762,13.79658737,2647.8,2645.8,0.19749188]
[1769797353068,0.94421573,2647.7,2645.9,0.94485808]
[1769797353368,13.79658737,2646.8,2644.3,0.01499784]
[1769797353569,13.79658737,2646.4,2645.1,0.01499784]
[1769797353871,1.8517666,2647.6,2646.6,0.01499784]
[1769797354056,0.94421573,2647.7,2646.0,0.01499784]
[1769797354572,14.7408031,2647.7,2645.3,0.791]
[1769797354730,14.7408031,2647.7,2645.8,0.95987859]
[1769797354731,13.79658737,2647.7,2645.8,0.95987859]
[1769797354929,0.94425139,2647.6,2646.0,0.01499784]
[1769797355163,0.94425139,2647.6,2646.1,0.01499784]
[1769797355344,15.64837127,2647.5,2645.5,0.94499529]
[1769797355645,15.64837127,2647.5,2644.9,0.01499784]
[1769797355646,0.01499784,2647.1,2644.9,0.01499784]
[1769797355870,0.01499784,2647.2,2644.9,0.94518367]
[1769797356174,13.81158521,2647.2,2645.0,0.94516434]
[1769797356333,13.79658737,2647.0,2644.5,0.01499784]
[1769797356662,13.85543402,2646.5,2644.0,0.03387094]
[1769797356832,1.39465658,2646.9,2645.6,0.01499784]
[1769797356833,1.37965874,2646.9,2645.6,0.01499784]
[1769797357033,0.94442975,2647.1,2645.8,0.01499784]
[1769797357268,14.23035934,2647.1,2645.9,0.01499784]
[1769797357456,13.28592959,2647.8,2646.8,0.01499784]
[1769797357771,13.28592959,2647.8,2646.3,0.01499784]
[1769797357772,14.23012225,2647.8,2646.3,0.01499784]
[1769797357995,1.38115852,2648.3,2646.5,0.01499784]
[1769797358138,0.89397401,2648.4,2646.8,0.01499784]
[1769797358466,0.89397401,2648.4,2646.6,0.01499784]
[1769797358467,14.1799036,2648.4,2646.6,0.01499784]
[1769797358675,14.1799036,2648.4,2645.7,0.01499784]
[1769797358676,13.28592959,2648.1,2645.7,0.01499784]
[1769797358977,0.94418007,2647.8,2645.2,0.80699784]
[1769797359173,13.28592959,2647.7,2645.5,0.959976]
[1769797359350,13.28592959,2647.7,2646.1,0.01499784]
[1769797359537,13.28592959,2647.7,2646.0,0.01499784]
[1769797359731,0.94400181,2648.3,2646.2,0.01499784]
[1769797359966,14.2299314,2648.3,2646.2,0.01499784]
[1769797360166,13.28592959,2647.3,2645.6,0.47399798]
[1769797360331,0.01499784,2647.4,2645.2,0.792]
[1769797360332,14.63102017,2647.2,2645.2,0.792]
[1769797360532,14.63102017,2647.2,2644.4,3.78148862]
[1769797360533,13.28592959,2646.4,2643.5,0.11928072]
[1769797360771,0.01499784,2646.1,2643.9,0.94554406]
[1769797360972,0.94482237,2646.0,2644.0,3.80099628]
[1769797361176,0.94480932,2646.1,2644.0,0.96439129]
[1769797361474,0.94457248,2646.7,2644.7,0.01499784]
[1769797361678,13.30092743,2646.6,2644.3,0.01499784]
[1769797361975,13.30092743,2646.6,2644.1,0.47465395]
[1769797361976,13.30092743,2646.2,2644.1,0.47465395]
[1769797362201,13.30092743,2646.0,2644.0,0.0188731]
[1769797362353,13.30092743,2646.0,2642.9,0.01499784]
[1769797362354,0.01499784,2644.3,2642.7,0.94598262]
[1769797362540,13.28592959,2644.7,2642.6,0.3]
[1769797362888,0.01499784,2645.2,2642.6,0.71500473]
[1769797362889,0.01499784,2645.0,2642.6,0.71500473]
[1769797363069,0.01499784,2644.1,2642.6,0.70000689]
[1769797363271,0.01499784,2644.1,2642.4,0.69249311]
[1769797363272,0.01499784,2643.4,2642.4,0.69249311]
[1769797363517,0.45232257,2643.5,2642.4,0.69249311]
[1769797363798,0.45232257,2643.5,2640.8,0.01499784]
[1769797363799,0.70749095,2642.3,2640.5,3.78715989]
[1769797363944,0.01499784,2642.5,2640.5,3.78715989]
[1769797364275,0.01499784,2643.2,2640.6,0.47339861]
[1769797364478,3.7811472,2645.0,2641.1,13.49093334]
[1769797364479,0.01499784,2644.4,2641.1,13.49093334]
[1769797364664,0.01499784,2643.5,2641.2,0.792]
[1769797364887,0.01499784,2644.2,2641.2,14.28293334]
[1769797365102,3.78195886,2644.2,2641.6,13.4759355]
[1769797365263,0.01499784,2643.9,2641.7,1.44223675]
[1769797365464,0.01499784,2643.3,2641.7,1.44223675]
[1769797365783,0.01499784,2642.9,2641.5,0.94643195]
[1769797365992,0.01499784,2643.1,2641.5,0.94643195]
[1769797366395,0.01499784,2643.3,2641.5,0.94643195]
[1769797366567,0.01499784,2643.0,2641.4,0.94645095]
[1769797366763,0.01499784,2642.7,2641.4,0.94645095]
[1769797367093,0.01499784,2642.9,2641.5,1.41967754]
[1769797367297,0.01499784,2643.4,2641.5,1.41967754]
[1769797367469,0.01499784,2643.3,2641.5,1.41967754]
[1769797367666,0.94568013,2643.7,2641.5,1.41967521]
[1769797367864,0.96067797,2643.7,2641.5,1.41967521]
[1769797368193,0.01499784,2642.9,2641.6,0.5205403]
[1769797368398,0.01499784,2642.9,2641.5,0.94642157]
[1769797368860,0.01499784,2643.0,2641.5,0.94642157]
[1769797369067,1.79791202,2643.6,2641.2,13.4759355]
[1769797369376,0.94564436,2643.7,2641.6,0.01499784]
[1769797370999,0.01499784,2643.1,2641.2,0.55398148]
[1769797371202,0.96080751,2643.3,2641.3,0.94650361]
[1769797371508,0.01499784,2642.9,2641.2,1.50050012]
[1769797371722,13.30092743,2643.8,2641.2,1.51549796]
[1769797372177,13.30092743,2643.5,2641.2,1.51549796]
[1769797372376,1.33009274,2643.4,2641.3,0.53016558]
[1769797372586,13.30092743,2644.6,2642.1,0.01499784]
[1769797372979,13.28592959,2644.6,2642.3,0.01499784]
[1769797373177,0.94535829,2644.5,2642.7,0.01499784]
[1769797373618,100.0,2644.7,2642.7,0.01499784]
[1769797373770,103.77358491,2644.7,2642.9,0.01499784]
[1769797373971,103.77358491,2644.7,2643.1,0.01499784]
[1769797374200,104.71887375,2644.7,2642.8,0.01499784]
[1769797374402,104.71887375,2644.7,2642.6,0.01499784]
[1769797374935,100.0,2644.7,2643.3,0.01499784]
[1769797375213,6.71100666,2647.4,2644.2,0.01499784]
[1769797375214,14.23079413,2645.9,2644.2,0.01499784]
[1769797375422,13.28592959,2645.9,2644.4,0.01499784]
[1769797375629,13.28592959,2645.9,2644.6,0.01499784]
[1769797375918,13.28592959,2645.9,2644.0,0.94550936]
[1769797375919,14.0,2645.3,2644.0,0.94550936]
[1769797376071,14.0,2645.3,2644.1,0.47276576]
[1769797376870,14.0,2645.3,2644.0,0.94552455]
[1769797377074,14.0,2645.3,2643.9,3.78214826]
[1769797377277,14.0,2645.3,2643.8,3.78214826]
[1769797377602,14.94482768,2646.0,2644.1,0.01499784]
[1769797377773,14.94482768,2646.0,2644.2,0.793]
[1769797377977,14.0,2645.8,2644.3,0.793]
[1769797378878,14.0,2645.8,2643.8,3.78214826]
[1769797379276,14.0,2645.6,2643.5,0.80799784]
[1769797379488,14.0,2645.3,2643.7,0.94561221]
[1769797380497,14.0,2645.3,2643.7,0.94561737]
[1769797380806,14.0,2645.1,2643.7,0.94561854]
[1769797381195,0.94517958,2645.0,2643.6,3.7827203]
[1769797381506,14.0,2645.0,2643.6,3.7827203]
[1769797381680,14.0,2645.0,2643.6,0.94568013]
[1769797381876,14.0,2645.0,2643.5,3.63524721]
[1769797382108,14.0,2645.0,2642.6,0.01499784]
[1769797382314,14.0,2644.5,2642.4,0.793]
[1769797382812,14.0,2645.3,2643.5,0.94571059]
[1769797383014,14.0,2646.0,2643.9,0.01499784]
[1769797383311,3.77890307,2646.3,2643.3,0.0008]
[1769797383312,13.99563811,2644.2,2643.3,0.0008]
[1769797383540,13.99563811,2644.2,2640.8,10.0]
[1769797383541,13.99523811,2642.9,2640.8,10.0]
[1769797383711,0.01499784,2643.4,2640.1,6.69600882]
[1769797383712,13.99523811,2642.2,2640.1,6.69600882]
[1769797383882,13.99523811,2642.2,2640.2,1.51960088]
[1769797384078,13.99523811,2642.2,2640.3,0.793]
[1769797384400,0.01499784,2643.2,2641.3,0.94650235]
[1769797384401,0.01499784,2642.6,2641.3,0.94650235]
[1769797384585,0.01499784,2642.6,2641.1,3.78626984]
[1769797384586,0.01499784,2642.3,2640.5,0.793]
[1769797384912,13.99523811,2642.4,2641.3,0.94649763]
[1769797385117,13.99523811,2643.1,2641.3,0.94649763]
[1769797385302,13.99523811,2643.6,2641.5,0.94643195]
[1769797386000,13.99523811,2644.3,2641.7,0.2335703]
[1769797386319,0.01499784,2644.0,2641.8,14.5]
[1769797386495,14.00834595,2643.8,2641.9,0.793]
[1769797386887,14.00834595,2643.8,2641.5,0.94643195]
[1769797387117,13.99334811,2643.0,2641.6,0.5205411]
[1769797387320,14.00834595,2642.7,2641.4,0.47325121]
[1769797387523,14.95435598,2642.7,2641.2,0.94652209]
[1769797387685,14.00834595,2642.7,2641.4,0.94646383]
[1769797387891,13.99334811,2642.4,2640.0,12.28781696]
[1769797388137,0.01499784,2642.9,2640.0,12.28781696]
[1769797388138,13.99334811,2643.1,2641.4,0.94643853]
[1769797388295,14.9392321,2643.1,2641.4,0.94643853]
[1769797388486,14.9392321,2643.1,2641.5,0.47323096]
[1769797388690,13.99334811,2643.0,2641.5,0.47323096]
[1769797389520,13.99334811,2643.0,2641.5,1.41964122]
[1769797389889,13.99334811,2643.0,2641.5,0.47323096]
[1769797389890,14.93924612,2643.0,2641.5,0.47323096]
[1769797390118,13.99334811,2643.0,2641.5,1.41963937]
[1769797390319,13.99334811,2643.0,2641.4,4.5787278]
[1769797390320,13.99334811,2642.8,2640.2,1.51960088]
[1769797390519,13.99334811,2642.2,2640.2,1.51960088]
[1769797390720,13.99334811,2641.9,2640.2,1.51960088]
[1769797390922,13.99334811,2641.9,2640.6,3.78695241]
[1769797391219,13.99334811,2641.9,2640.2,1.51960088]
[1769797391431,13.99334811,2641.8,2640.2,2.46649438]
[1769797392729,13.99334811,2641.6,2640.2,1.51960088]
[1769797392896,13.35913404,2640.5,2639.7,3.03374656]
[1769797393092,13.35913404,2641.7,2640.8,0.01499784]
[1769797393513,13.35913404,2642.4,2640.8,0.94667063]
[1769797393828,13.35913404,2642.4,2641.4,0.01499784]
[1769797394134,13.35913404,2642.4,2640.7,3.80172913]
[1769797394135,13.37413188,2641.5,2639.3,0.01499784]
[1769797394430,13.37413188,2641.5,2638.5,0.0188731]
[1769797394431,13.37413188,2640.4,2638.5,0.0188731]
[1769797394615,13.37413188,2640.2,2638.5,0.0188731]
[1769797394818,13.37413188,2640.2,2638.8,3.78949233]
[1769797394819,13.35913404,2640.2,2638.8,3.78949233]
[1769797395023,0.01499784,2640.7,2638.5,0.0188731]
[1769797395195,0.01499784,2640.0,2638.5,0.0188731]
[1769797395403,0.01499784,2639.5,2638.5,0.0188731]
[1769797395599,0.01499784,2640.5,2638.5,1.34741785]
[1769797395600,13.35913404,2640.4,2638.5,1.34741785]
[1769797395837,0.01499784,2640.3,2638.5,1.34741785]
[1769797396040,0.01499784,2640.0,2638.5,0.0188731]
[1769797396196,13.37413188,2639.0,2637.7,0.12048706]
[1769797396400,13.35913404,2639.0,2637.7,0.12048706]
[1769797396619,0.01499784,2638.9,2637.7,0.12048706]
[1769797396824,13.35913404,2638.3,2636.9,3.05991736]
[1769797397044,0.01499784,2639.3,2636.9,3.05991736]
[1769797397045,13.35913404,2639.0,2637.7,0.94778595]
[1769797397200,13.35913404,2639.7,2638.4,0.01499784]
[1769797397405,0.94699381,2640.0,2638.7,0.01499784]
[1769797397598,14.30612785,2640.0,2638.3,0.12048706]
[1769797397811,13.35913404,2639.7,2637.9,0.12048706]
[1769797398100,13.35913404,2639.3,2637.4,0.01499784]
[1769797398313,13.35913404,2639.3,2637.8,0.01499784]
[1769797398617,13.35913404,2639.9,2637.8,0.793]
[1769797398820,13.35913404,2640.6,2638.2,0.94761422]
[1769797399022,13.35913404,2641.3,2638.9,0.01499784]
[1769797399228,13.37413188,2641.9,2639.5,0.01499784]
[1769797399402,0.01499784,2641.3,2639.6,1.74011319]
[1769797399603,13.35913404,2641.5,2639.6,1.86060025]
[1769797399998,13.35913404,2641.5,2639.7,0.12048706]
[1769797400241,13.35913404,2641.5,2639.7,0.68539782]
[1769797400413,0.21274977,2642.3,2640.0,0.01499784]
[1769797400414,13.35913404,2642.2,2640.0,0.01499784]
[1769797400739,1.14390138,2642.3,2640.4,0.01499784]
[1769797401063,0.4729832,2642.7,2640.6,0.01499784]
[1769797401210,0.4729832,2642.7,2640.8,0.01499784]
[1769797401414,14.30508063,2642.9,2640.9,0.94664697]
[1769797401627,14.30508063,2642.9,2641.0,0.793]
[1769797401819,14.32007847,2642.9,2641.0,0.793]
[1769797402149,14.32007847,2642.9,2641.1,0.12048706]
[1769797402150,13.35913404,2642.5,2641.1,0.12048706]
[1769797402333,13.35913404,2642.5,2641.0,0.12048706]
[1769797402541,14.69654723,2642.5,2640.9,0.12048706]
[1769797402926,13.35913404,2642.5,2640.9,0.12048706]
[1769797403443,13.35913404,2642.5,2640.9,1.06712709]
[1769797403650,0.01599784,2643.2,2641.1,0.01499784]
[1769797403651,13.36013404,2643.2,2641.1,0.01499784]
[1769797403837,14.3059611,2643.2,2641.5,0.01499784]
[1769797404027,14.30595773,2643.2,2641.5,0.01499784]
[1769797404228,13.35913404,2643.0,2641.6,0.12048706]
[1769797404412,13.35913404,2643.0,2641.1,0.01499784]
[1769797404915,13.35913404,2643.0,2641.3,0.01499784]
[1769797405316,1.80891124,2643.1,2641.5,0.96142979]
[1769797405544,0.94684127,2643.2,2641.5,0.01499784]
[1769797405821,14.30597531,2643.2,2641.6,0.12048706]
[1769797406016,14.30597531,2643.2,2641.5,0.12048706]
[1769797406549,0.001,2643.2,2641.8,0.01499784]
[1769797406749,13.35913404,2644.6,2642.6,0.01499784]
[1769797406951,13.35913404,2645.3,2643.4,0.01499784]
[1769797407153,14.30422756,2645.3,2643.6,0.01499784]
[1769797407318,0.94498273,2645.6,2644.0,0.94553706]
[1769797407517,13.35913404,2646.0,2644.1,0.1354849]
[1769797407721,1.43039469,2645.9,2644.5,0.01499784]
[1769797407918,0.01499784,2645.0,2644.1,0.60830387]
[1769797408143,13.35913404,2645.4,2644.1,0.12048706]
[1769797408342,0.19747862,2645.8,2644.1,0.12048706]
[1769797408554,13.35913404,2646.1,2644.1,0.12048706]
[1769797408747,14.30331411,2647.9,2646.3,0.01499784]
[1769797408931,0.94396616,2648.4,2647.3,0.01499784]
[1769797409251,0.94346743,2649.8,2648.0,0.01499784]
[1769797409456,0.94346743,2649.8,2648.1,0.01499784]
[1769797409760,0.94346743,2649.8,2647.8,0.01499784]
[1769797409926,15.36397803,2649.7,2646.8,0.01499784]
[1769797410120,0.01499784,2649.0,2646.7,0.11948706]
[1769797410344,13.35913404,2649.1,2646.8,0.01499784]
[1769797410663,13.35913404,2649.1,2647.2,0.01499784]
[1769797410963,13.35913404,2649.1,2646.9,0.11948706]
[1769797411256,0.01499784,2648.5,2645.9,0.01499784]
[1769797411420,0.9440731,2648.1,2646.6,0.11948706]
[1769797411617,0.9440731,2648.1,2645.9,0.01499784]